bitfinex/quotes_SOLUSD_20241024
["timestamp","ask_amount","ask_price","bid_price","bid_amount"]
[1729732872500,93.26735974,173.74,173.69,93.26735974]
[1729732874584,93.26735974,173.74,173.61,93.36735974]
[1729732874585,93.26735974,173.74,173.68,93.26735974]
[1729732874782,15.6318,173.75,173.7,93.26735974]
[1729732875201,15.6318,173.75,173.71,93.26735974]
[1729732877614,93.26735974,173.73,173.68,93.26735974]
[1729732877909,93.26735974,173.72,173.67,93.26735974]
[1729732878082,93.26735974,173.7,173.65,93.26735974]
[1729732878285,5.7567,173.71,173.62,57.37571924]
[1729732878286,57.37571924,173.68,173.62,57.37571924]
[1729732879204,57.37571924,173.67,173.54,10.60220781]
[1729732879394,57.37571924,173.66,173.6,57.37571924]
[1729732879591,57.37571924,173.67,173.61,57.37571924]
[1729732879910,57.37571924,173.67,173.62,57.37571924]
[1729732881005,63.13391924,173.67,173.62,57.37571924]
[1729732881585,5.7582,173.67,173.62,57.37571924]
[1729732881781,5.7582,173.67,173.63,57.37571924]
[1729732882002,57.37571924,173.66,173.6,57.37571924]
[1729732882204,57.37571924,173.65,173.59,57.37571924]
[1729732882484,20.0,173.66,173.61,57.37571924]
[1729732882891,77.37571924,173.66,173.6,57.37571924]
[1729732883101,57.37571924,173.63,173.58,57.37571924]
[1729732883304,57.37571924,173.59,173.54,2.4734]
[1729732883505,57.37571924,173.58,173.54,2.4734]
[1729732884593,63.13651924,173.59,173.54,2.4734]
[1729732885486,57.37571924,173.58,173.54,2.4734]
[1729732885686,57.37571924,173.56,173.54,2.4734]
[1729732885883,57.37571924,173.55,173.54,2.4734]
[1729732886396,106.91460324,173.55,173.54,2.4734]
[1729732887311,57.37571924,173.52,173.46,57.37571924]
[1729732888599,63.13881924,173.52,173.46,57.37571924]
[1729732889219,63.13881924,173.52,173.47,57.37571924]
[1729732889382,63.13881924,173.52,173.42,8.03436344]
[1729732889589,63.13881924,173.52,173.47,57.37571924]
[1729732889794,5.7631,173.52,173.47,57.37571924]
[1729732890203,5.7631,173.52,173.42,8.03436344]
[1729732890399,57.37571924,173.51,173.46,57.37571924]
[1729732890713,63.13881924,173.52,173.47,57.37571924]
[1729732890891,57.37571924,173.51,173.45,57.37571924]
[1729732891406,28.68785962,173.49,173.44,57.37571924]
[1729732891615,5.8631,173.52,173.42,65.41008268]
[1729732891616,57.37571924,173.47,173.42,65.41008268]
[1729732891907,57.37571924,173.47,173.42,8.03436344]
[1729732892410,57.37571924,173.47,173.41,57.37571924]
[1729732892592,57.37571924,173.48,173.43,57.37571924]
[1729732893310,57.37571924,173.48,173.42,57.37571924]
[1729732893694,20.0,173.47,173.43,57.37571924]
[1729732894014,77.37571924,173.53,173.46,57.37571924]
[1729732894190,77.37571924,173.51,173.46,57.37571924]
[1729732894622,5.8625,173.54,173.43,28.68785962]
[1729732894623,77.37571924,173.48,173.43,28.68785962]
[1729732894820,20.0,173.48,173.44,57.37571924]
[1729732895120,20.0,173.5,173.45,57.37571924]
[1729732895292,20.0,173.5,173.46,57.37571924]
[1729732895693,20.0,173.5,173.45,57.37571924]
[1729732895902,20.0,173.5,173.46,57.37571924]
[1729732896095,20.0,173.52,173.47,57.37571924]
[1729732896305,77.37571924,173.52,173.47,57.37571924]
[1729732897115,83.13881924,173.52,173.47,57.37571924]
[1729732897423,25.7631,173.52,173.47,57.37571924]
[1729732897607,83.13881924,173.52,173.47,57.37571924]
[1729732897913,77.37571924,173.52,173.47,57.37571924]
[1729732898603,57.37571924,173.55,173.5,57.37571924]
[1729732899416,63.13701924,173.57,173.52,57.37571924]
[1729732899603,57.37571924,173.57,173.52,57.37571924]
[1729732899802,57.37571924,173.56,173.51,57.37571924]
[1729732900203,63.13711924,173.57,173.51,57.37571924]
[1729732900501,63.13711924,173.57,173.52,57.37571924]
[1729732901117,20.0,173.56,173.52,57.37571924]
[1729732901417,20.0,173.57,173.53,57.37571924]
[1729732901615,6.98151419,173.59,173.56,57.37571924]
[1729732901995,6.98151419,173.59,173.55,57.37571924]
[1729732902203,6.98151419,173.59,173.54,57.37571924]
[1729732902498,6.98151419,173.59,173.47,0.1]
[1729732902499,6.98151419,173.59,173.56,57.37571924]
[1729732902720,6.98151419,173.59,173.55,57.37571924]
[1729732902914,64.35723343,173.59,173.54,57.37571924]
[1729732903099,64.35723343,173.59,173.53,57.37571924]
[1729732903416,57.37571924,173.54,173.48,57.37571924]
[1729732903619,20.0,173.55,173.51,57.37571924]
[1729732903992,20.0,173.55,173.43,57.47571924]
[1729732903993,57.37571924,173.54,173.49,28.68785962]
[1729732904216,57.37571924,173.53,173.48,57.37571924]
[1729732904822,63.13811924,173.54,173.48,57.37571924]
[1729732904993,20.0,173.53,173.5,57.37571924]
[1729732905703,20.0,173.54,173.49,57.37571924]
[1729732905916,57.37571924,173.53,173.48,57.37571924]
[1729732906117,77.37571924,173.54,173.49,57.37571924]
[1729732906321,77.37571924,173.54,173.38,0.1]
[1729732906322,28.68785962,173.5,173.39,0.12549]
[1729732906501,28.68785962,173.46,173.4,57.37571924]
[1729732906705,57.37571924,173.45,173.4,57.37571924]
[1729732906909,57.37571924,173.46,173.41,57.37571924]
[1729732907207,57.37571924,173.42,173.35,135.20169006]
[1729732907513,57.37571924,173.42,173.37,57.37571924]
[1729732907833,57.37571924,173.43,173.38,57.37571924]
[1729732908204,57.37571924,173.42,173.37,57.37571924]
[1729732908400,57.37571924,173.41,173.35,127.16408228]
[1729732909730,57.37571924,173.43,173.37,57.37571924]
[1729732909909,57.37571924,173.43,173.35,69.78836304]
[1729732909910,57.37571924,173.43,173.38,57.37571924]
[1729732910228,20.0,173.43,173.39,57.37571924]
[1729732910724,20.0,173.4,173.36,57.37571924]
[1729732910909,57.37571924,173.42,173.37,57.37571924]
[1729732911506,20.0,173.37,173.35,69.78836304]
[1729732911714,5.7668,173.41,173.35,69.78836304]
[1729732911917,20.0,173.4,173.35,69.78836304]
[1729732912221,57.37571924,173.38,173.35,69.78836304]
[1729732912421,0.25098,173.46,173.35,69.78836304]
[1729732912628,20.0,173.43,173.35,69.78836304]
[1729732912817,20.0,173.39,173.35,69.78836304]
[1729732913011,0.12549,173.4,173.35,69.78836304]
[1729732913418,20.0,173.39,173.35,69.78836304]
[1729732913633,28.68785962,173.37,173.35,69.78836304]
[1729732913844,57.37571924,173.38,173.35,69.78836304]
[1729732914132,77.37571924,173.39,173.35,69.78836304]
[1729732914313,0.1,173.45,173.35,69.78836304]
[1729732914314,5.765,173.46,173.35,69.78836304]
[1729732915512,57.37571924,173.41,173.35,127.16408228]
[1729732915817,63.14211924,173.42,173.37,57.37571924]
[1729732916318,77.37571924,173.41,173.36,57.37571924]
[1729732916735,77.37571924,173.41,173.35,127.16408228]
[1729732916935,57.37571924,173.38,173.35,69.78836304]
[1729732917116,57.37571924,173.37,173.35,69.78836304]
[1729732917421,57.37571924,173.38,173.35,69.78836304]
[1729732919118,57.37571924,173.39,173.35,69.78836304]
[1729732919625,63.14291924,173.4,173.35,69.78836304]
[1729732919825,20.0,173.39,173.35,69.78836304]
[1729732920029,57.37571924,173.38,173.35,69.78836304]
[1729732920230,77.37571924,173.39,173.35,69.78836304]
[1729732920525,57.37571924,173.38,173.35,69.78836304]
[1729732921923,57.37571924,173.43,173.37,57.37571924]
[1729732922125,77.50120924,173.42,173.37,57.37571924]
[1729732922514,57.37571924,173.41,173.36,57.37571924]
[1729732922830,20.0,173.4,173.36,57.37571924]
[1729732923035,57.37571924,173.39,173.35,69.78836304]
[1729732923216,57.37571924,173.37,173.35,69.78836304]
[1729732925018,63.14381924,173.37,173.35,69.78836304]
[1729732925539,57.37571924,173.36,173.35,69.78836304]
[1729732925839,63.14381924,173.37,173.35,69.78836304]
[1729732927021,101.27809324,173.36,173.35,69.78836304]
[1729732927219,107.95628324,173.36,173.35,69.78836304]
[1729732928236,108.05628324,173.36,173.35,53.12176304]
[1729732928442,165.53200248,173.36,173.35,36.45516304]
[1729732928733,108.15628324,173.36,173.35,36.45516304]
[1729732929115,56.348864,173.36,173.35,36.45516304]
[1729732929321,20.0,173.36,173.35,36.45516304]
[1729732929525,25.7683,173.36,173.35,36.45516304]
[1729732929819,20.0,173.36,173.35,36.45516304]
[1729732930427,25.7683,173.36,173.35,36.45516304]
[1729732930945,20.0,173.36,173.35,36.45516304]
[1729732932020,25.7683,173.36,173.35,36.45516304]
[1729732933539,5.7672,173.4,173.35,93.83088228]
[1729732933736,5.7672,173.4,173.38,57.37571924]
[1729732934039,5.7665,173.42,173.39,57.37571924]
[1729732934228,5.7665,173.42,173.4,57.37571924]
[1729732934419,57.37571924,173.46,173.41,57.37571924]
[1729732934718,57.37571924,173.42,173.37,57.37571924]
[1729732935329,5.7666,173.41,173.37,57.37571924]
[1729732936034,63.14231924,173.41,173.36,57.37571924]
[1729732936231,20.0,173.42,173.39,28.68785962]
[1729732936432,57.37571924,173.47,173.41,57.37571924]
[1729732936732,5.7648,173.47,173.35,36.45516304]
[1729732936943,57.37571924,173.43,173.38,57.37571924]
[1729732937256,63.14191924,173.43,173.38,57.37571924]
[1729732937447,57.37571924,173.42,173.37,57.37571924]
[1729732937639,57.37571924,173.42,173.35,36.45516304]
[1729732937640,57.37571924,173.41,173.36,57.37571924]
[1729732937844,5.7662,173.43,173.35,93.83088228]
[1729732937845,57.37571924,173.4,173.35,93.83088228]
[1729732938024,57.37571924,173.38,173.35,36.45516304]
[1729732938346,77.37571924,173.37,173.35,36.45516304]
[1729732938531,20.0,173.37,173.35,36.45516304]
[1729732938730,57.37571924,173.4,173.35,93.83088228]
[1729732938942,57.37571924,173.42,173.37,57.37571924]
[1729732939132,20.0,173.41,173.37,57.37571924]
[1729732939344,20.0,173.39,173.35,93.83088228]
[1729732939729,20.0,173.39,173.37,57.37571924]
[1729732939930,20.0,173.43,173.38,57.37571924]
[1729732940131,20.0,173.44,173.4,57.37571924]
[1729732940436,63.14031924,173.47,173.42,57.37571924]
[1729732940748,57.37571924,173.45,173.4,57.37571924]
[1729732941058,57.37571924,173.42,173.35,36.45516304]
[1729732941231,57.37571924,173.41,173.36,57.37571924]
[1729732941535,57.37571924,173.4,173.35,93.83088228]
[1729732941849,20.0,173.4,173.37,57.37571924]
[1729732942455,20.0,173.41,173.37,57.37571924]
[1729732943050,83.14251924,173.41,173.36,57.37571924]
[1729732944247,83.14251924,173.41,173.35,93.83088228]
[1729732944456,83.14251924,173.41,173.36,57.37571924]
[1729732944954,25.7668,173.41,173.37,57.37571924]
[1729732945125,25.7668,173.41,173.36,57.37571924]
[1729732945329,83.14251924,173.41,173.36,57.37571924]
[1729732946051,83.14251924,173.41,173.35,93.83088228]
[1729732946757,83.14251924,173.41,173.36,57.37571924]
[1729732947055,25.7668,173.41,173.37,57.37571924]
[1729732947654,25.7668,173.41,173.35,36.45516304]
[1729732947655,20.0,173.39,173.35,93.83088228]
[1729732948243,20.0,173.43,173.38,57.37571924]
[1729732948546,20.0,173.41,173.37,57.37571924]
[1729732949442,83.14251924,173.41,173.35,93.83088228]
[1729732950040,83.14251924,173.41,173.36,57.37571924]
[1729732950655,83.14251924,173.41,173.35,36.45516304]
[1729732950656,77.37571924,173.39,173.35,36.45516304]
[1729732950857,57.37571924,173.37,173.35,36.45516304]
[1729732951035,63.14371924,173.37,173.35,36.45516304]
[1729732951241,57.37571924,173.36,173.35,36.45516304]
[1729732952356,4.31280816,173.36,173.35,36.45516304]
[1729732952559,5.768,173.37,173.35,36.45516304]
[1729732952760,4.31279384,173.36,173.35,65.14302266]
[1729732952966,57.37571924,173.49,173.35,65.14302266]
[1729732953258,6.89804612,173.48,173.43,57.37571924]
[1729732953456,6.89804612,173.47,173.43,57.37571924]
[1729732953636,6.89804612,173.46,173.43,57.37571924]
[1729732953841,77.55011924,173.49,173.45,57.37571924]
[1729732953842,5.764,173.49,173.45,57.37571924]
[1729732954163,5.764,173.49,173.46,57.37571924]
[1729732954659,5.7635,173.51,173.47,57.37571924]
[1729732954973,6.89537749,173.5,173.45,57.37571924]
[1729732955143,87.04209324,173.5,173.44,57.37571924]
[1729732955947,81.27809324,173.48,173.42,57.37571924]
[1729732956560,25.7646,173.47,173.42,57.37571924]
[1729732957562,20.0,173.45,173.41,57.37571924]
[1729732957758,77.37571924,173.45,173.39,57.37571924]
[1729732957956,57.37571924,173.44,173.39,57.37571924]
[1729732958164,20.0,173.43,173.39,57.37571924]
[1729732958357,57.37571924,173.42,173.37,57.37571924]
[1729732958539,57.37571924,173.4,173.35,93.83088228]
[1729732958746,77.37571924,173.39,173.35,36.45516304]
[1729732960775,83.14311924,173.39,173.35,36.45516304]
[1729732961156,57.37571924,173.38,173.35,36.45516304]
[1729732961459,20.0,173.37,173.35,36.45516304]
[1729732962166,20.0,173.38,173.35,36.45516304]
[1729732967569,57.37571924,173.42,173.37,57.37571924]
[1729732967749,57.37571924,173.38,173.35,36.45516304]
[1729732967950,20.0,173.37,173.35,36.45516304]
[1729732968472,77.37571924,173.37,173.35,36.45516304]
[1729732968969,83.14371924,173.37,173.35,36.45516304]
[1729732969351,25.768,173.37,173.35,36.45516304]
[1729732971472,20.0,173.37,173.35,36.45516304]
[1729732971656,20.0,173.38,173.35,36.45516304]
[1729732972061,77.37571924,173.38,173.35,36.45516304]
[1729732972580,101.40358324,173.36,173.35,36.45516304]
[1729732973259,105.71219541,173.36,173.35,36.45516304]
[1729732973867,168.95621465,173.36,173.35,36.45516304]
[1729732974177,197.14440268,173.36,173.35,36.45516304]
[1729732974354,197.14378995,173.36,173.35,36.45516304]
[1729732975056,197.14349023,173.36,173.35,36.45516304]
[1729732977454,139.31679099,173.36,173.35,36.45516304]
[1729732977667,93.54192222,173.36,173.35,36.45516304]
[1729732978375,72.16615056,173.36,173.35,36.45516304]
[1729732978779,96.18982536,173.36,173.35,36.45516304]
[1729732979083,96.18983429,173.36,173.35,36.45516304]
[1729732981384,76.18814331,173.36,173.35,36.45516304]
[1729732981564,4.30243173,173.36,173.35,36.45516304]
[1729732981873,35.99994758,173.39,173.35,36.45516304]
[1729732982193,35.99994758,173.42,173.37,35.99994758]
[1729732982360,4.300725,173.41,173.38,35.99994758]
[1729732982560,4.300725,173.41,173.35,36.45516304]
[1729732982561,35.99994758,173.42,173.37,35.99994758]
[1729732982873,35.99994758,173.42,173.36,35.99994758]
[1729732983178,5.7666,173.41,173.36,35.99994758]
[1729732983363,41.76654758,173.41,173.36,35.99994758]
[1729732983559,20.0,173.4,173.36,35.99994758]
[1729732983969,41.76654758,173.41,173.36,35.99994758]
[1729732984179,35.99994758,173.43,173.38,35.99994758]
[1729732984469,5.7653,173.45,173.42,57.53144152]
[1729732984666,4.30016002,173.44,173.41,57.53144152]
[1729732984859,5.7653,173.45,173.41,57.53144152]
[1729732985055,61.83161616,173.44,173.39,57.53144152]
[1729732985279,57.53144152,173.44,173.39,57.53144152]
[1729732985586,63.29704152,173.44,173.38,57.53144152]
[1729732985792,20.0,173.43,173.38,57.53144152]
[1729732986001,20.0,173.43,173.39,57.53144152]
[1729732986166,20.0,173.43,173.38,57.53144152]
[1729732986367,20.0,173.43,173.39,57.53144152]
[1729732988975,20.0,173.41,173.37,57.53144152]
[1729732989287,83.29754152,173.43,173.37,57.53144152]
[1729732989476,57.53144152,173.42,173.37,57.53144152]
[1729732989681,20.0,173.41,173.37,57.53144152]
[1729732990571,20.0,173.41,173.36,57.53144152]
[1729732990778,20.0,173.37,173.35,36.45516304]
[1729732990976,77.53144152,173.37,173.35,36.45516304]
[1729732991301,20.0,173.37,173.35,36.45516304]
[1729732992165,57.53144152,173.39,173.35,36.45516304]
[1729732992367,77.53144152,173.38,173.35,36.45516304]
[1729732992885,20.0,173.39,173.35,93.98660456]
[1729732993277,20.0,173.39,173.37,57.53144152]
[1729732993475,5.7663,173.43,173.38,57.53144152]
[1729732993675,5.7663,173.43,173.4,57.53144152]
[1729732993894,5.7663,173.43,173.39,57.53144152]
[1729732994095,57.53144152,173.41,173.36,57.53144152]
[1729732994302,57.53144152,173.4,173.35,93.98660456]
[1729732994589,57.53144152,173.4,173.35,36.45516304]
[1729732994767,20.0,173.39,173.35,93.98660456]
[1729732994969,20.0,173.39,173.35,36.45516304]
[1729732995169,83.29884152,173.39,173.35,36.45516304]
[1729732995365,57.53144152,173.38,173.35,36.45516304]
[1729732995670,20.0,173.37,173.35,36.45516304]
[1729732998486,57.53144152,173.45,173.36,57.53144152]
[1729732998692,61.83201848,173.44,173.39,57.53144152]
[1729732998899,4.30057696,173.43,173.39,57.53144152]
[1729732999194,57.53144152,173.43,173.38,57.53144152]
[1729732999379,57.53144152,173.43,173.37,57.53144152]
[1729732999589,57.53144152,173.41,173.36,57.53144152]
[1729732999778,57.53144152,173.4,173.35,93.98660456]
[1729732999974,20.0,173.39,173.35,93.98660456]
[1729733000180,20.0,173.4,173.35,93.98660456]
[1729733000383,5.7673,173.39,173.35,93.98660456]
[1729733001184,57.53144152,173.38,173.35,36.45516304]
[1729733001707,57.53144152,173.36,173.35,36.45516304]
[1729733002003,57.53144152,173.38,173.35,36.45516304]
[1729733002301,20.0,173.38,173.35,36.45516304]
[1729733002594,25.7678,173.38,173.35,36.45516304]
[1729733004099,83.29924152,173.38,173.35,36.45516304]
[1729733006307,61.74692728,173.38,173.35,36.45516304]
[1729733008006,25.7678,173.38,173.35,36.45516304]
[1729733015496,61.74692728,173.38,173.35,36.45516304]
[1729733015813,80.00699128,173.36,173.35,36.45516304]
[1729733015991,84.31686571,173.36,173.35,36.45516304]
[1729733017809,90.08516571,173.36,173.35,36.45516304]
[1729733018380,89.95967571,173.36,173.35,36.45516304]
[1729733018581,24.30982901,173.36,173.35,36.45516304]
[1729733019888,30.07812901,173.36,173.35,36.45516304]
[1729733021689,25.7683,173.36,173.35,36.45516304]
[1729733021920,30.07918427,173.36,173.35,36.45516304]
[1729733022213,25.7683,173.36,173.35,36.45516304]
[1729733022510,30.08043777,173.36,173.35,36.45516304]
[1729733022714,30.08061584,173.36,173.35,36.45516304]
[1729733023398,66.05974312,173.36,173.35,36.45516304]
[1729733024001,30.08061584,173.36,173.35,36.45516304]
[1729733024412,66.05974312,173.36,173.35,36.45516304]
[1729733025209,72.96253257,173.36,173.35,36.45516304]
[1729733025396,72.96250812,173.36,173.35,36.45516304]
[1729733025599,96.99037212,173.36,173.35,36.45516304]
[1729733026002,96.99253624,173.36,173.35,36.45516304]
[1729733026198,130.04489988,173.36,173.35,30.84406889]
[1729733026402,44.027864,173.35,173.27,0.6148413]
[1729733026610,35.97912728,173.3,173.27,0.6148413]
[1729733026819,20.0,173.29,173.27,0.6148413]
[1729733027815,61.74982728,173.29,173.27,0.6148413]
[1729733028820,79.88150128,173.28,173.27,0.6148413]
[1729733029392,43.902374,173.28,173.27,0.6148413]
[1729733030201,85.65250128,173.28,173.27,0.6148413]
[1729733030493,49.673374,173.28,173.27,0.6148413]
[1729733031208,20.0,173.28,173.27,0.6148413]
[1729733031597,20.12549,173.31,173.27,36.59396858]
[1729733031800,5.7693,173.33,173.29,35.97912728]
[1729733032118,0.12549,173.32,173.29,35.97912728]
[1729733032499,5.7697,173.32,173.28,35.97912728]
[1729733032894,20.0,173.31,173.28,35.97912728]
[1729733033101,20.0,173.31,173.27,36.59396858]
[1729733034900,20.0,173.31,173.27,0.6148413]
[1729733035101,25.7702,173.31,173.27,0.6148413]
[1729733038831,61.74932728,173.31,173.27,0.6148413]
[1729733039828,25.7702,173.31,173.27,0.6148413]
[1729733040026,61.74932728,173.31,173.27,0.6148413]
[1729733040511,4.3096968,173.3,173.27,0.6148413]
[1729733040716,61.74932728,173.31,173.27,0.6148413]
[1729733041033,4.3097241,173.3,173.27,36.59396858]
[1729733041228,15.0628,173.36,173.29,35.97912728]
[1729733041439,4.30936947,173.35,173.34,35.97912728]
[1729733041726,6.4094,173.38,173.34,35.97912728]
[1729733041933,4.30842946,173.37,173.33,35.97912728]
[1729733042130,4.30842946,173.36,173.33,35.97912728]
[1729733042431,42.38852728,173.38,173.33,35.97912728]
[1729733042615,24.30837749,173.37,173.33,35.97912728]
[1729733042817,4.30837749,173.36,173.33,35.97912728]
[1729733043430,4.30837749,173.36,173.34,35.97912728]
[1729733043743,63.26352728,173.42,173.35,35.97912728]
[1729733044031,63.26352728,173.42,173.37,35.97912728]
[1729733044032,11.20216362,173.41,173.37,35.97912728]
[1729733044231,11.20216362,173.4,173.38,35.97912728]
[1729733044526,6.9879112,173.43,173.39,35.97912728]
[1729733044717,6.9879112,173.43,173.42,35.97912728]
[1729733044919,18.18837817,173.43,173.4,35.97912728]
[1729733045121,4.30787191,173.42,173.34,35.97912728]
[1729733045325,4.30787191,173.42,173.4,35.97912728]
[1729733045523,4.30787191,173.42,173.39,35.97912728]
[1729733046020,4.30787191,173.42,173.4,35.97912728]
[1729733046431,4.30787191,173.42,173.39,35.97912728]
[1729733048924,55.97912728,173.41,173.36,35.97912728]
[1729733049115,40.28699919,173.4,173.35,35.97912728]
[1729733049315,4.30787191,173.39,173.36,35.97912728]
[1729733049529,55.97912728,173.41,173.36,35.97912728]
[1729733049735,4.3068275,173.4,173.37,35.97912728]
[1729733050038,4.3068275,173.39,173.36,35.97912728]
[1729733050246,46.05315478,173.4,173.35,35.97912728]
[1729733050537,24.3068275,173.39,173.35,35.97912728]
[1729733050731,4.3068275,173.38,173.35,35.97912728]
[1729733051849,20.0,173.39,173.35,35.97912728]
[1729733052020,4.30746665,173.38,173.35,35.97912728]
[1729733052220,20.0,173.39,173.35,35.97912728]
[1729733052434,4.30759109,173.38,173.35,35.97912728]
[1729733052633,20.0,173.39,173.35,35.97912728]
[1729733052832,4.30758742,173.38,173.35,35.97912728]
[1729733053135,20.0,173.39,173.35,35.97912728]
[1729733053335,4.30751937,173.38,173.35,35.97912728]
[1729733053519,20.0,173.39,173.35,35.97912728]
[1729733054036,4.30763254,173.38,173.35,35.97912728]
[1729733054249,20.0,173.39,173.35,35.97912728]
[1729733054423,4.30767597,173.38,173.35,35.97912728]
[1729733054625,35.97912728,173.36,173.31,35.97912728]
[1729733054830,35.97912728,173.37,173.31,35.97912728]
[1729733055131,35.97912728,173.37,173.32,35.97912728]
[1729733056147,4.30840499,173.36,173.31,35.97912728]
[1729733056327,35.97912728,173.37,173.32,35.97912728]
[1729733056628,4.30869206,173.36,173.33,35.97912728]
[1729733056825,55.97912728,173.37,173.32,35.97912728]
[1729733057028,4.30863724,173.36,173.32,35.97912728]
[1729733057241,55.97912728,173.37,173.32,35.97912728]
[1729733057841,20.0,173.33,173.28,35.97912728]
[1729733058044,35.97912728,173.31,173.27,0.6148413]
[1729733058420,35.97912728,173.32,173.27,36.59396858]
[1729733058621,20.0,173.31,173.27,36.59396858]
[1729733059538,20.0,173.31,173.27,0.6148413]
[1729733059737,35.97912728,173.3,173.27,0.6148413]
[1729733060643,61.74912728,173.31,173.27,0.6148413]
[1729733061246,35.97912728,173.35,173.3,35.97912728]
[1729733061428,60.28876155,173.34,173.29,35.97912728]
[1729733061627,4.30963427,173.33,173.29,35.97912728]
[1729733061950,20.0,173.34,173.3,35.97912728]
[1729733062127,4.30957413,173.33,173.3,35.97912728]
[1729733062448,20.0,173.34,173.3,35.97912728]
[1729733062641,20.0,173.35,173.31,35.97912728]
[1729733063520,20.0,173.35,173.33,35.97912728]
[1729733063726,20.0,173.36,173.33,35.97912728]
[1729733064037,12.1552,173.37,173.33,35.97912728]
[1729733064038,4.30917167,173.35,173.33,35.97912728]
[1729733064219,35.97912728,173.38,173.33,35.97912728]
[1729733064423,11.20358871,173.37,173.33,35.97912728]
[1729733064631,4.30907258,173.36,173.33,35.97912728]
[1729733064885,47.18271794,173.37,173.32,35.97912728]
[1729733065054,4.30907258,173.36,173.32,35.97912728]
[1729733065545,4.30907258,173.36,173.33,35.97912728]
[1729733065746,4.30907258,173.35,173.33,35.97912728]
[1729733065943,25.768,173.37,173.33,35.97912728]
[1729733066149,4.30911863,173.36,173.33,35.97912728]
[1729733066332,25.768,173.37,173.33,35.97912728]
[1729733066649,4.30871351,173.36,173.28,6.255]
[1729733066861,20.0,173.39,173.35,17.98956364]
[1729733067043,4.30885672,173.38,173.29,24.027864]
[1729733067244,11.8851,173.41,173.29,24.127864]
[1729733067426,4.30803624,173.4,173.29,24.127864]
[1729733067627,4.30803624,173.39,173.36,35.97912728]
[1729733067848,4.30803624,173.38,173.36,35.97912728]
[1729733068041,4.30803624,173.4,173.36,35.97912728]
[1729733068243,4.30776735,173.39,173.36,35.97912728]
[1729733068537,35.97912728,173.39,173.34,35.97912728]
[1729733068943,17.98956364,173.39,173.35,35.97912728]
[1729733069153,61.74622728,173.4,173.35,35.97912728]
[1729733069345,4.30758701,173.39,173.35,35.97912728]
[1729733069651,61.74622728,173.4,173.35,35.97912728]
[1729733069955,40.28668231,173.39,173.34,35.97912728]
[1729733070251,35.97912728,173.39,173.34,35.97912728]
[1729733070445,61.74622728,173.4,173.35,35.97912728]
[1729733070760,4.30726865,173.39,173.37,0.1]
[1729733070930,0.99803452,173.48,173.37,0.1]
[1729733070931,5.7633,173.51,173.38,42.01742764]
[1729733071250,6.88973956,173.5,173.47,35.97912728]
[1729733071548,6.88973956,173.49,173.47,35.97912728]
[1729733071732,6.88649466,173.48,173.47,35.97912728]
[1729733071933,5.7633,173.51,173.47,35.97912728]
[1729733072143,26.88611886,173.5,173.47,35.97912728]
[1729733072447,20.0,173.5,173.47,35.97912728]
[1729733073130,20.0,173.47,173.42,35.97912728]
[1729733073448,35.97912728,173.48,173.43,35.97912728]
[1729733073648,20.0,173.5,173.47,35.97912728]
[1729733074450,20.0,173.5,173.46,35.97912728]
[1729733074750,25.7637,173.5,173.46,35.97912728]
[1729733075133,25.7637,173.5,173.43,35.97912728]
[1729733075134,55.97912728,173.48,173.43,35.97912728]
[1729733076039,35.97912728,173.46,173.41,35.97912728]
[1729733076453,20.0,173.46,173.42,35.97912728]
[1729733077455,25.765,173.46,173.42,35.97912728]
[1729733078357,61.74412728,173.46,173.41,35.97912728]
[1729733078652,61.74412728,173.46,173.37,16.3151]
[1729733078653,55.97912728,173.47,173.42,35.97912728]
[1729733079356,20.0,173.47,173.43,35.97912728]
[1729733079532,41.74322728,173.49,173.44,35.97912728]
[1729733079845,23.902374,173.5,173.38,0.1]
[1729733079846,35.97912728,173.5,173.45,35.97912728]
[1729733080053,20.0,173.49,173.45,35.97912728]
[1729733081161,55.97912728,173.49,173.44,35.97912728]
[1729733081334,55.97912728,173.49,173.37,16.3151]
[1729733081335,35.97912728,173.45,173.4,35.97912728]
[1729733081537,35.97912728,173.44,173.39,35.97912728]
[1729733082644,35.97912728,173.45,173.4,35.97912728]
[1729733083557,35.97912728,173.45,173.41,35.97912728]
[1729733083939,35.97912728,173.45,173.4,35.97912728]
[1729733084942,35.97912728,173.44,173.4,35.97912728]
[1729733085952,35.97912728,173.44,173.39,35.97912728]
[1729733086766,35.97912728,173.43,173.39,35.97912728]
[1729733088056,35.97912728,173.44,173.39,35.97912728]
[1729733088356,35.97912728,173.45,173.4,35.97912728]
[1729733089835,8.63135186,173.56,173.44,36.07912728]
[1729733090041,4.29517377,173.55,173.51,35.97912728]
[1729733090263,42.09742728,173.56,173.51,35.97912728]
[1729733090555,40.27116124,173.55,173.5,35.97912728]
[1729733090756,35.97912728,173.55,173.5,35.97912728]